[Event "Przeworsk GM norm 2022"]
[Site "Przeworsk"]
[Date "2022.06.05"]
[Round "9.1"]
[White "Mikrut, Dariusz"]
[Black "Stefansson, Hannes"]
[Result "0-1"]
[ECO "B30"]
[WhiteElo "2361"]
[BlackElo "2534"]
[Annotator "TA"]
[PlyCount "74"]
[EventDate "2022.05.30"]
[EventType "tourn"]
[EventCountry "POL"]
[SourceTitle "playchess.com"]
[Source "ChessBase"]
[SourceQuality "1"]
[TimeControl "40/5400+30:1800+30"]

{[%evp 14,74,26,-27,-20,-18,-20,-26,-13,-37,-34,-34,-35,-39,-35,-36,-32,-38,-28,-20,-18,-12,-26,-45,-42,-100,-100,-94,-95,-96,-90,-132,-127,-125,-113,-135,-113,-116,-77,-74,-71,-77,-67,-68,-55,-105,-111,-168,-143,-158,-118,-179,-184,-268,-251,-334,-321,-370,-392,-382,-379,-375,-347]} 1. e4 {[%emt 0:00:13]} c5 {[%emt 0:00:14]} 2. Nf3 {[%emt 0:00:20]} Nc6 {[%emt 0:00:19]} 3. Bb5 {[%emt 0:00:07]} e6 {[%emt 0:01:06]} 4. O-O {[%emt 0:00:33]} Nge7 {[%emt 0:00:16]} 5. c3 {[%emt 0:02:42]} d5 {[%emt 0:02:54]} 6. exd5 {[%emt 0:07:48]} Qxd5 {[%emt 0:00:09]} 7. d4 {[%emt 0:03:31]} cxd4 {[%emt 0:01:06]} 8. Nxd4 {[%emt 0:02:29]} (8. Ba4 $142) 8... Bd7 $11 {[%emt 0:00:23] B30: Sicilian: 2...Nc6 3 Bb5, lines without ...g6.} 9. Be3 {[%emt 0:03:20]} Nxd4 {[%emt 0:01:14]} 10. Bxd7+ {[%emt 0:01:07]} (10. c4 {seems wilder.} Qd6 11. Bxd7+ Qxd7 12. Qxd4 Nf5 13. Qe4) 10... Qxd7 {[%emt 0:01:06] Black has an edge.} 11. Qxd4 {[%emt 0:00:50]} Qxd4 {[%emt 0:00:25]} 12. Bxd4 {[%emt 0:00:12]} Nf5 {[%emt 0:00:31] [#]} 13. Be3 $146 {[%emt 0:04:57]} ({Predecessor:} 13. Be5 f6 14. Bf4 O-O-O 15. a4 Rd3 16. Bc1 a6 17. Na3 Bc5 18. Re1 e5 19. Nc4 {0-1 (42) Ismailov,T (2054)-Vakhidov,J (2542) Tashkent 2017}) 13... Nxe3 {[%emt 0:01:48]} 14. fxe3 {[%emt 0:00:04]} Rd8 {[%emt 0:03:48]} 15. Kf2 {[%emt 0:00:25]} Rd5 {[%emt 0:00:15]} 16. Ke2 {[%emt 0:02:05]} Bd6 {[%emt 0:00:23]} 17. h3 {[%emt 0:01:14]} Rb5 {[%emt 0:00:42]} 18. b3 {[%emt 0:08:06]} Rg5 {[%emt 0:00:30]} 19. Rf2 {[%emt 0:01:29]} (19. Kf3 $1 $15) 19... Bg3 $36 {[%emt 0:00:50][%mdl 2048] Black has strong initiative.} 20. Rf3 {[%emt 0:01:46]} Be5 {[%emt 0:00:10]} 21. Rf2 {[%emt 0:01:07]} Ke7 {[%emt 0:01:38]} 22. a4 {[%emt 0:04:59]} Bg3 {[%emt 0:06:32]} 23. Rf3 {[%emt 0:03:54]} Rc8 {[%emt 0:00:19]} 24. Kd3 {[%emt 0:13:30]} Be1 {[%emt 0:03:46]} 25. g4 {[%emt 0:06:24]} h5 {[%emt 0:03:00]} 26. Rf4 {[%emt 0:01:11]} hxg4 {[%emt 0:00:46]} 27. hxg4 {[%emt 0:00:03]} Rd5+ {[%emt 0:04:58]} 28. Rd4 {[%emt 0:01:56]} Rdc5 {[%emt 0:03:26][%cal Re1c3]} 29. c4 {[%emt 0:01:27]} (29. Rc4 $15) 29... e5 {[%emt 0:00:25]} 30. Re4 {[%emt 0:01:05] [#]} (30. Na3 $17 Bb4 31. Rd5) 30... Rd8+ $1 $19 {[%emt 0:04:53]} 31. Ke2 {[%emt 0:00:32]} Bb4 {[%emt 0:00:25] 0x0.000bd51018b7dp-1022s more active pieces.} 32. Ra2 {[%emt 0:02:56]} (32. a5 $17 Ke6 33. a6) 32... Kf6 {[%emt 0:04:25]} 33. Rc2 {[%emt 0:03:49]} (33. a5 {keeps fighting.}) 33... a5 {[%emt 0:06:32] Threatens to win with ...Kg5.} 34. Rc1 {[%emt 0:01:29]} Kg5 {[%emt 0:03:55]} 35. Rf1 {[%emt 0:05:39] [#]} f6 {[%emt 0:01:13] Black is winning.} 36. Rf5+ {[%emt 0:00:32]} Kg6 {[%emt 0:00:06]} 37. Rh5 {[%emt 0:04:36]} Rcc8 {[%emt 0:06:30] Weighted Error Value: White=0.23 (precise) /Black=0.06 (flawless)} 0-1

[Event "Przeworsk GM norm 2022"]
[Site "Przeworsk"]
[Date "2022.06.05"]
[Round "9.2"]
[White "Teclaf, Pawel"]
[Black "Baum, Jonasz"]
[Result "1-0"]
[ECO "A13"]
[WhiteElo "2537"]
[BlackElo "2409"]
[Annotator "TA"]
[PlyCount "101"]
[EventDate "2022.05.30"]
[EventType "tourn"]
[EventCountry "POL"]
[SourceTitle "playchess.com"]
[Source "ChessBase"]
[SourceQuality "1"]
[TimeControl "40/5400+30:1800+30"]

{[%evp 13,101,12,19,30,22,18,36,25,38,36,41,31,33,40,39,29,28,31,33,48,52,67,110,92,92,93,131,126,133,128,119,119,117,109,106,91,127,111,193,197,200,192,210,206,244,244,237,237,241,230,245,243,244,233,233,233,231,236,239,208,208,207,211,186,179,140,129,122,206,206,248,174,244,228,268,262,270,265,352,355,391,364,29987,29988,29988,29989,29989,29990,29990,756]} 1. c4 {[%emt 0:00:03]} e6 {[%emt 0:03:02]} 2. Nf3 {[%emt 0:00:16]} d5 {[%emt 0:00:35]} 3. e3 {[%emt 0:00:05]} Nf6 {[%emt 0:01:02]} 4. Nc3 {[%emt 0:00:05]} Be7 {[%emt 0:02:01]} 5. b3 {[%emt 0:00:50]} O-O {[%emt 0:00:27]} 6. Bb2 {[%emt 0:00:06]} c5 {[%emt 0:00:11]} 7. cxd5 {[%emt 0:00:34]} exd5 {[%emt 0:00:14]} 8. d4 {[%emt 0:01:17] A13: English Opening: 1...e6.} Nc6 {[%emt 0:01:30]} 9. Be2 {[%emt 0:07:42]} Be6 {[%emt 0:04:16]} 10. O-O {[%emt 0:01:16] White is slightly better.} Rc8 {[%emt 0:03:13]} 11. Rc1 {[%emt 0:12:45]} cxd4 {[%emt 0:11:42]} 12. Nxd4 {[%emt 0:00:39]} Bd6 {[%emt 0:02:29] [#]} 13. Qd3 $5 $146 {[%emt 0:24:59][%mdl 8] New and interesting.} ({Predecessor:} 13. Na4 Ne4 14. Bf3 Ng5 15. Be2 Ne4 16. Bf3 Ng5 17. Be2 Qe7 18. Nb5 Bb8 19. Ba3 {0-1 (40) Brunner,L (2475)-Maze,S (2578) Switzerland 2009}) 13... Bb8 {[%emt 0:05:26]} 14. g3 {[%emt 0:08:28]} Bh3 {[%emt 0:07:48]} 15. Rfd1 {[%emt 0:01:13]} Qe7 {[%emt 0:00:33]} 16. Nxc6 {[%emt 0:03:49]} bxc6 {[%emt 0:00:55]} 17. Qd4 {[%emt 0:00:22]} Rfd8 {[%emt 0:08:35]} 18. Na4 {[%emt 0:01:51][%cal Bc3a4,Ba4c5,Bc5d3][%mdl 32]} Bd6 {[%emt 0:07:29]} 19. Qh4 {[%emt 0:04:43]} Bf5 {[%emt 0:03:15]} 20. Bxf6 {[%emt 0:01:13]} Qxf6 {[%emt 0:01:11]} 21. Qxf6 {[%emt 0:00:11]} gxf6 {[%emt 0:00:01]} 22. Nc5 {[%emt 0:00:40]} Be5 {[%emt 0:06:28]} 23. Rd2 {[%emt 0:00:40] Against Bb2} Rb8 {[%emt 0:00:43]} 24. Kg2 {[%emt 0:03:58]} Kf8 {[%emt 0:01:24]} 25. Bd3 {[%emt 0:01:18]} Bxd3 {[%emt 0:01:15]} (25... Bc8 $16 {is a better defense.}) 26. Nxd3 $18 {[%emt 0:00:38]} Rb6 {[%emt 0:01:40]} 27. Rdc2 {[%emt 0:00:40]} Rc8 {[%emt 0:00:07]} 28. Rc5 {[%emt 0:01:03]} Rc7 {[%emt 0:03:23]} 29. Nxe5 {[%emt 0:01:50]} fxe5 {[%emt 0:00:01]} 30. Rxd5 $1 {[%emt 0:00:03][%mdl 4096] Endgame KRR-KRR} f6 {[%emt 0:04:31]} 31. Rdc5 {[%emt 0:02:45]} Ke7 {[%emt 0:00:18]} 32. Kf3 {[%emt 0:00:31]} Kd6 {[%emt 0:00:52]} 33. Ke4 {[%emt 0:02:04]} f5+ {[%emt 0:01:08]} 34. Kf3 {[%emt 0:05:11]} Ra6 {[%emt 0:02:17] [#]} 35. R5c2 {[%emt 0:00:10]} Ra5 {[%emt 0:01:22]} 36. e4 {[%emt 0:04:46]} fxe4+ {[%emt 0:00:21]} 37. Kxe4 {[%emt 0:00:21]} Rd5 {[%emt 0:00:04]} 38. Ke3 {[%emt 0:01:27]} a5 {[%emt 0:01:45]} 39. Rd2 {[%emt 0:08:35]} Rf7 {[%emt 0:01:18]} 40. Rcc2 {[%emt 0:00:00]} Rf8 {[%emt 0:00:00]} (40... a4 $16 41. bxa4 c5) 41. Ke4 {[%emt 0:05:57]} Rd8 {[%emt 0:06:31]} 42. Rd3 {[%emt 0:03:36]} Rd7 {[%emt 0:03:06]} (42... Rxd3 $142 43. Kxd3 Rf8) 43. Rc4 {[%emt 0:01:43]} Ke7 {[%emt 0:03:00]} 44. Rdc3 {[%emt 0:02:55]} Rd2 {[%emt 0:04:48] [#]} 45. Rc2 $1 {[%emt 0:00:11]} ({Much less strong is} 45. Kxe5 Re2+ 46. Re4 Rxf2 47. Rxc6 Rxa2 $16) 45... Kf6 {[%emt 0:02:27]} 46. Rxc6+ {[%emt 0:00:29]} Kg5 {[%emt 0:00:00]} 47. h3 {[%emt 0:04:28] Threatens to win with f4+.} h5 $2 {[%emt 0:00:46]} (47... R7d5 $18 48. R2c4 Rb5 49. h4+ Kh5) 48. f4+ {[%emt 0:00:53] White mates.} exf4 {[%emt 0:00:09]} 49. R2c5+ {[%emt 0:00:03]} R7d5 {[%emt 0:00:20]} 50. Rxd5+ {[%emt 0:00:04]} Rxd5 {[%emt 0:00:04]} 51. gxf4+ {[%emt 0:00:04] Weighted Error Value: White=0.06 (flawless) /Black=0.36} 1-0

[Event "Przeworsk GM norm 2022"]
[Site "Przeworsk"]
[Date "2022.06.05"]
[Round "9.3"]
[White "Fus, Jakub"]
[Black "Licznerski, Lukasz"]
[Result "1/2-1/2"]
[ECO "B13"]
[WhiteElo "2378"]
[BlackElo "2439"]
[Annotator "TA"]
[PlyCount "107"]
[EventDate "2022.05.30"]
[EventType "tourn"]
[EventCountry "POL"]
[SourceTitle "playchess.com"]
[Source "ChessBase"]
[SourceQuality "1"]
[TimeControl "40/5400+30:1800+30"]

{[%evp 14,107,12,5,12,10,13,12,14,12,20,14,15,19,14,7,17,0,0,0,0,0,0,0,0,0,0,0,0,0,0,0,0,0,0,0,0,0,0,0,0,0,0,0,0,0,0,0,0,0,0,0,0,0,0,0,0,0,0,-4,0,-6,0,0,0,0,0,-7,-7,-7,-7,-7,0,0,0,0,0,0,0,0,0,0,0,0,0,0,0,0,0,0,0,0,0,0,0,0]} 1. e4 {[%emt 0:01:32]} c6 {[%emt 0:00:10]} 2. d4 {[%emt 0:00:18]} d5 {[%emt 0:00:02]} 3. exd5 {[%emt 0:00:09]} cxd5 {[%emt 0:00:06]} 4. Bd3 {[%emt 0:00:06]} Nc6 {[%emt 0:01:19]} 5. c3 {[%emt 0:01:06]} Nf6 {[%emt 0:00:04]} 6. h3 {[%emt 0:00:18]} g6 {[%emt 0:00:01]} 7. Nf3 {[%emt 0:00:17]} Bf5 {[%emt 0:00:02]} 8. O-O {[%emt 0:02:07] The position is equal. 8.Be2 might become the main line.} Bxd3 {[%emt 0:01:19] B13: Caro-Kann: Exchange Variation and Panov-Botvinnik Attack.} 9. Qxd3 {[%emt 0:00:07]} Bg7 {[%emt 0:01:38]} 10. Bf4 {[%emt 0:00:35]} Ne4 {[%emt 0:00:57]} 11. Nbd2 {[%emt 0:03:39]} Nxd2 {[%emt 0:01:38] [#]} 12. Nxd2 $146 {[%emt 0:07:33]} ({Predecessor:} 12. Qxd2 O-O 13. Rfe1 e6 14. Ne5 Nxe5 15. Bxe5 Bxe5 16. Rxe5 Qd6 17. h4 h5 18. Rxh5 gxh5 19. Qg5+ Kh7 20. Qxh5+ Kg7 21. Qg5+ {½-½ (21) Predojevic,B (2620)-Saric,I (2555) Tuzla 2019}) 12... O-O {[%emt 0:00:04]} 13. Qb5 {[%emt 0:01:13]} Qd7 {[%emt 0:07:33]} 14. Nb3 {[%emt 0:01:21]} Ne5 {[%emt 0:15:27]} 15. a4 {[%emt 0:24:55]} Qxb5 {[%emt 0:00:17]} 16. axb5 {[%emt 0:00:06]} Nd3 {[%emt 0:00:25][%csl LRb2,LRf4]} 17. Bc1 {[%emt 0:00:45]} a6 {[%emt 0:00:39]} 18. Ra5 {[%emt 0:07:00]} b6 {[%emt 0:03:24]} 19. Rxa6 {[%emt 0:00:12]} Rxa6 {[%emt 0:00:02]} 20. bxa6 {[%emt 0:00:08] And now Rd1 would win.} Ra8 {[%emt 0:00:02]} 21. Rd1 $1 {[%emt 0:01:00]} Nxc1 {[%emt 0:00:03]} 22. Nxc1 {[%emt 0:00:18]} Rxa6 $11 {[%emt 0:00:05][%mdl 4096] Endgame KRB-KRN} 23. Nd3 {[%emt 0:00:06]} e6 {[%emt 0:03:56]} 24. f4 {[%emt 0:00:16]} Bf8 {[%emt 0:01:20]} 25. Kf2 {[%emt 0:02:13]} h6 {[%emt 0:00:32]} 26. Ke3 {[%emt 0:00:46]} g5 {[%emt 0:01:37]} 27. g3 {[%emt 0:04:27]} Bd6 {[%emt 0:00:08]} 28. h4 {[%emt 0:04:29]} Kg7 {[%emt 0:27:54]} 29. hxg5 {[%emt 0:00:37]} hxg5 {[%emt 0:01:39]} 30. Rh1 {[%emt 0:03:50]} Ra8 {[%emt 0:00:33]} 31. Kf3 {[%emt 0:01:17]} Kg6 {[%emt 0:04:19]} 32. Kg4 {[%emt 0:07:50]} gxf4 {[%emt 0:04:53]} 33. gxf4 {[%emt 0:00:12]} b5 {[%emt 0:02:20]} 34. Kf3 {[%emt 0:13:24]} b4 {[%emt 0:05:07]} 35. cxb4 {[%emt 0:01:18]} Rb8 {[%emt 0:00:49]} 36. Ra1 {[%emt 0:01:31]} Kf5 {[%emt 0:01:41]} 37. Rh1 {[%emt 0:08:01]} f6 {[%emt 0:01:35]} 38. Rh5+ {[%emt 0:02:30]} Kg6 {[%emt 0:00:01]} 39. Rh2 {[%emt 0:00:12]} Bxb4 {[%emt 0:00:12]} 40. Kg4 {[%emt 0:00:00]} Bd6 {[%emt 0:00:00]} 41. Re2 {[%emt 0:07:47]} Kf7 {[%emt 0:04:59]} 42. Rc2 {[%emt 0:02:01]} Ra8 {[%emt 0:02:51]} 43. Rc6 {[%emt 0:01:50]} Ke7 {[%emt 0:00:37]} 44. Kf3 {[%emt 0:03:54]} Rh8 {[%emt 0:01:36]} 45. Ra6 {[%emt 0:01:51]} Rh3+ {[%emt 0:00:58]} 46. Ke2 {[%emt 0:00:07]} Kd7 {[%emt 0:00:55]} 47. Ra7+ {[%emt 0:00:29]} Kc6 {[%emt 0:00:10]} 48. Ra6+ {[%emt 0:00:54]} Kc7 {[%emt 0:00:02]} 49. Nc5 {[%emt 0:02:02]} e5 {[%emt 0:07:07]} 50. Ne6+ {[%emt 0:00:46]} Kd7 {[%emt 0:00:05]} 51. fxe5 {[%emt 0:00:08]} fxe5 {[%emt 0:00:16]} 52. dxe5 {[%emt 0:00:09]} Bxe5 {[%emt 0:01:08]} 53. Nc5+ {[%emt 0:00:08]} Kc7 {[%emt 0:00:27]} 54. b4 {[%emt 0:00:29] A rather calm draw.  Weighted Error Value: White=0.01 (flawless) /Black=0.01 (flawless)} 1/2-1/2

[Event "Przeworsk GM norm 2022"]
[Site "Przeworsk"]
[Date "2022.06.05"]
[Round "9.4"]
[White "Omelja, Artem"]
[Black "Golubka, Petro"]
[Result "1/2-1/2"]
[ECO "D10"]
[WhiteElo "2515"]
[BlackElo "2380"]
[Annotator "TA"]
[PlyCount "61"]
[EventDate "2022.05.30"]
[EventType "tourn"]
[EventCountry "POL"]
[SourceTitle "playchess.com"]
[Source "ChessBase"]
[SourceQuality "1"]
[TimeControl "40/5400+30:1800+30"]

{[%evp 16,61,26,25,32,32,31,35,34,29,61,52,46,39,75,67,75,34,39,17,93,0,21,-62,0,0,25,15,108,28,20,29,35,16,28,45,36,0,0,0,0,0,0,0,0,0,0,0]} 1. d4 {[%emt 0:05:17]} d5 {[%emt 0:01:00]} 2. c4 {[%emt 0:00:07]} c6 {[%emt 0:00:29]} 3. Nc3 {[%emt 0:00:07]} Nf6 {[%emt 0:00:12]} 4. cxd5 {[%emt 0:00:07]} cxd5 {[%emt 0:00:08]} 5. Bf4 {[%emt 0:00:10]} e6 {[%emt 0:00:43]} 6. e3 {[%emt 0:00:06]} Nc6 {[%emt 0:00:19]} 7. Bd3 {[%emt 0:00:09]} Bd6 {[%emt 0:00:09]} 8. Bxd6 {[%emt 0:00:08]} Qxd6 {[%emt 0:00:06]} 9. f4 {[%emt 0:00:10]} Nb4 {[%emt 0:03:06] D10: Slav Defence: 3 cxd5 (without early Nf3) and 3 Nc3.} 10. Bb1 {[%emt 0:00:10]} Bd7 {[%emt 0:00:21]} 11. Nf3 {[%emt 0:00:09]} O-O {[%emt 0:00:12] White is slightly better.} 12. O-O {[%emt 0:00:10] [#]} Rfc8 $146 {[%emt 0:01:55]} ({Predecessor:} 12... g6 13. Ne5 Ne8 14. a3 Nc6 15. Qd3 Ne7 16. Ba2 a6 17. Rac1 f6 18. Nxd7 Qxd7 {1-0 (26) Dushatskiy,F (2109)-Biebinger,G (2239) Neustadt an der Weinstrasse 2019}) 13. a3 {[%emt 0:00:08]} Nc6 {[%emt 0:00:12]} 14. Bd3 {[%emt 0:00:17]} Na5 {[%emt 0:00:37]} 15. Ne5 {[%emt 0:00:06]} Nc4 {[%emt 0:00:20]} 16. Bxc4 {[%emt 0:00:10]} dxc4 {[%emt 0:00:03]} 17. e4 {[%emt 0:00:15][%cal Oe5f7]} b5 {[%emt 0:00:12] [#]} (17... Bc6 $11 {keeps the balance.}) 18. Qd2 {[%emt 0:00:07] White is more active.} (18. Nxf7 $1 $16 Kxf7 (18... Qb6 19. e5) 19. e5) 18... a5 {[%emt 0:00:15] [#]} 19. Qe3 {[%emt 0:00:05]} (19. Nxf7 $1 $11 Kxf7 20. e5) 19... h6 {[%emt 0:02:03]} (19... b4 $15 20. Nd1 (20. axb4 axb4 21. Rxa8 Rxa8 $17) 20... Bb5) 20. Ne2 {[%emt 0:00:09]} b4 {[%emt 0:01:22]} 21. axb4 {[%emt 0:00:13]} Qxb4 {[%emt 0:00:13] [#]} (21... axb4 $11 {remains equal.} 22. Nxc4 Qc7 23. Rxa8 Rxa8) 22. Nc3 {[%emt 0:00:16]} ({Better is} 22. g4 $1 $16 {[%cal Rg4g5] Black must now prevent g5.} Be8 23. Nc3 (23. g5 hxg5 24. fxg5 Nd7 $14)) 22... a4 $11 {[%emt 0:00:19]} (22... Qxb2 $2 23. Rfb1 Qb4 24. Nxd7 (24. Rxb4 axb4 25. Rxa8 Rxa8 $16) 24... Nxd7 25. Rxb4 $18) 23. h3 {[%emt 0:00:24]} a3 {[%emt 0:00:25]} (23... Qxb2 $2 24. Rfb1 Qc2 25. Ra2 $18) 24. bxa3 {[%emt 0:00:07]} Rxa3 {[%emt 0:00:07]} 25. Rxa3 {[%emt 0:00:04]} Qxa3 {[%emt 0:00:02]} 26. Qc1 {[%emt 0:00:18]} Qa7 {[%emt 0:00:11] The position is equal.} 27. Rd1 {[%emt 0:00:09]} Bc6 {[%emt 0:00:11]} 28. Qe3 {[%emt 0:00:20]} Bb7 {[%emt 0:00:24]} 29. Kh2 {[%emt 0:00:23]} Qa8 {[%emt 0:00:22][%cal Rf6e4]} 30. Re1 {[%emt 0:00:10]} Qa7 {[%emt 0:00:09]} 31. Rd1 {[%emt 0:00:08] Weighted Error Value: White=0.23 (precise) /Black=0.15 (very precise)} 1/2-1/2

[Event "Przeworsk GM norm 2022"]
[Site "Przeworsk"]
[Date "2022.06.05"]
[Round "9.5"]
[White "Mis, Mieszko"]
[Black "Neugebauer, Martin"]
[Result "1/2-1/2"]
[ECO "B33"]
[WhiteElo "2388"]
[BlackElo "2505"]
[Annotator "TA"]
[PlyCount "26"]
[EventDate "2022.05.30"]
[EventType "tourn"]
[EventCountry "POL"]
[SourceTitle "playchess.com"]
[Source "ChessBase"]
[SourceQuality "1"]
[TimeControl "40/5400+30:1800+30"]

{[%evp 25,26,0,12]} 1. e4 {[%emt 0:00:03]} c5 {[%emt 0:00:12]} 2. Nf3 {[%emt 0:00:13][%cal Bg1f3,Bf3d4,Bd4b5][%mdl 32]} Nc6 {[%emt 0:00:17]} 3. d4 {[%emt 0:00:24]} cxd4 {[%emt 0:00:06]} 4. Nxd4 {[%emt 0:00:06]} Nf6 {[%emt 0:00:30]} 5. Nc3 {[%emt 0:00:26]} e5 {[%emt 0:00:18]} 6. Ndb5 {[%emt 0:00:17]} d6 {[%emt 0:00:26]} 7. Bg5 {[%emt 0:00:21]} a6 8. Na3 {[%emt 0:00:05]} b5 {[%emt 0:00:42]} 9. Nd5 {[%emt 0:00:20]} Qa5+ {[%emt 0:00:39]} 10. Bd2 {[%emt 0:00:06]} Qd8 {[%emt 0:00:06]} 11. Bg5 {[%emt 0:00:09]} Qa5+ {[%emt 0:00:08]} 12. Bd2 {[%emt 0:00:05]} Qd8 {[%emt 0:00:05]} 13. Bg5 {[%emt 0:00:06] [#]} Qa5+ $146 ({Predecessor:} 13... Be7 14. Bxf6 Bxf6 15. c3 Bg5 16. Nc2 Ne7 17. Ncb4 O-O 18. g3 Be6 19. h4 Bh6 20. Bg2 a5 21. Nxe7+ Qxe7 22. Nd5 Qb7 23. g4 Bxd5 24. Qxd5 Qxd5 25. exd5 {½-½ (25) Sindarov,J (2558)-Vakhidov,J (2534) Chess.com INT 2021}) 1/2-1/2